[Event "*** Titled Tuesday Blitz"]
[Site "Chess.com"]
[Date "2020.05.19"]
[Round "4"]
[White "EmeseBalogh"]
[Black "ecwinslow"]
[Result "1-0"]
[WhiteElo "1952"]
[BlackElo "2199"]
[TimeControl "180+1"]
[EndTime "12:41:18 PDT"]
[Termination "EmeseBalogh won by resignation"]

1. e4 {[%clk 0:03:00.9]} 1... c5 {[%clk 0:02:58.8]} 2. Nc3 {[%clk 0:03:00.2]}
2... g6 {[%clk 0:02:57.2]} 3. d3 {[%clk 0:02:59.7]} 3... Bg7 {[%clk 0:02:56.8]}
4. g3 {[%clk 0:02:58.1]} 4... d6 {[%clk 0:02:57.3]} 5. Bg2 {[%clk 0:02:57.2]}
5... Nc6 {[%clk 0:02:58]} 6. Nge2 {[%clk 0:02:57.2]} 6... e5 {[%clk 0:02:48.8]}
7. O-O {[%clk 0:02:56.8]} 7... Be6 {[%clk 0:02:44.6]} 8. Be3 {[%clk 0:02:23.8]}
8... h5 {[%clk 0:02:35.5]} 9. h4 {[%clk 0:02:22.4]} 9... Qd7 {[%clk 0:02:31.5]}
10. Qd2 {[%clk 0:02:18.8]} 10... Nh6 {[%clk 0:02:24.6]} 11. Qc1 {[%clk
0:02:06.2]} 11... Bh3 {[%clk 0:02:19.1]} 12. Nd5 {[%clk 0:02:03]} 12... Bxg2
{[%clk 0:02:11.1]} 13. Kxg2 {[%clk 0:02:03.9]} 13... Ng4 {[%clk 0:02:08.9]} 14.
Bg5 {[%clk 0:01:53.6]} 14... f6 {[%clk 0:02:03.5]} 15. Bd2 {[%clk 0:01:52.4]}
15... f5 {[%clk 0:01:46.9]} 16. f3 {[%clk 0:01:40.1]} 16... Nf6 {[%clk
0:01:44.8]} 17. Nxf6+ {[%clk 0:01:24.6]} 17... Bxf6 {[%clk 0:01:44]} 18. Bg5
{[%clk 0:01:24.4]} 18... Qe7 {[%clk 0:01:37]} 19. c3 {[%clk 0:01:18.3]} 19...
O-O {[%clk 0:01:31.1]} 20. f4 {[%clk 0:00:59.2]} 20... fxe4 {[%clk 0:01:15.3]}
21. dxe4 {[%clk 0:01:00.1]} 21... exf4 {[%clk 0:01:13.6]} 22. Rxf4 {[%clk
0:00:35]} 22... Bxg5 {[%clk 0:01:01.3]} 23. hxg5 {[%clk 0:00:34.9]} 23... Ne5
{[%clk 0:00:53.3]} 24. Qe3 {[%clk 0:00:19.5]} 24... Nc4 {[%clk 0:00:39.6]} 25.
Qd3 {[%clk 0:00:19]} 25... Qe6 {[%clk 0:00:16.8]} 26. Raf1 {[%clk 0:00:16.5]}
26... Ne5 {[%clk 0:00:15.5]} 27. Rxf8+ {[%clk 0:00:13.2]} 27... Rxf8 {[%clk
0:00:14.5]} 28. Rxf8+ {[%clk 0:00:14.1]} 28... Kxf8 {[%clk 0:00:14.8]} 29. Qd5
{[%clk 0:00:14.2]} 29... Qxd5 {[%clk 0:00:14.6]} 30. exd5 {[%clk 0:00:15.1]}
30... Nc4 {[%clk 0:00:13.6]} 31. b3 {[%clk 0:00:14.7]} 31... Ne3+ {[%clk
0:00:13]} 32. Kf3 {[%clk 0:00:14.9]} 32... Nxd5 {[%clk 0:00:13.6]} 33. c4 {[%clk
0:00:12.9]} 33... Nb4 {[%clk 0:00:12.3]} 34. Nc3 {[%clk 0:00:12.8]} 34... Kf7
{[%clk 0:00:09.1]} 35. Ke4 {[%clk 0:00:12.9]} 35... Ke6 {[%clk 0:00:08.8]} 36.
a3 {[%clk 0:00:12.3]} 36... Nc6 {[%clk 0:00:07.9]} 37. Nd5 {[%clk 0:00:12.4]}
37... a6 {[%clk 0:00:07.2]} 38. b4 {[%clk 0:00:09.6]} 38... cxb4 {[%clk
0:00:06.4]} 39. axb4 {[%clk 0:00:10.5]} 39... a5 {[%clk 0:00:06.2]} 40. bxa5
{[%clk 0:00:10.1]} 40... Nxa5 {[%clk 0:00:05.9]} 41. Nf4+ {[%clk 0:00:09.6]}
41... Kd7 {[%clk 0:00:05.1]} 42. Kd5 {[%clk 0:00:10.5]} 42... Nc6 {[%clk
0:00:04.3]} 43. Nxg6 {[%clk 0:00:10.6]} 43... Ne7+ {[%clk 0:00:03.2]} 44. Nxe7
{[%clk 0:00:10.6]} 44... Kxe7 {[%clk 0:00:03.6]} 45. g6 {[%clk 0:00:10.5]} 45...
Kf6 {[%clk 0:00:03.5]} 46. g7 {[%clk 0:00:10.6]} 46... Kxg7 {[%clk 0:00:03.7]}
47. Kxd6 {[%clk 0:00:11.5]} 47... Kf6 {[%clk 0:00:03.8]} 48. Kc7 {[%clk
0:00:12.4]} 48... Kg5 {[%clk 0:00:03.8]} 49. Kxb7 {[%clk 0:00:12.3]} 49... Kg4
{[%clk 0:00:04.5]} 50. c5 {[%clk 0:00:12.7]} 50... Kxg3 {[%clk 0:00:05]} 51. c6
{[%clk 0:00:13.6]} 51... h4 {[%clk 0:00:05.5]} 52. c7 {[%clk 0:00:14.5]} 52...
h3 {[%clk 0:00:06]} 53. c8=Q {[%clk 0:00:15.4]} 53... h2 {[%clk 0:00:04.6]} 54.
Qc6 {[%clk 0:00:14.1]} 1-0

[Event "*** Titled Tuesday Blitz"]
[Site "Chess.com"]
[Date "2020.05.19"]
[Round "4"]
[White "giantslayer83"]
[Black "Fandorine"]
[Result "1/2-1/2"]
[WhiteElo "2692"]
[BlackElo "2882"]
[TimeControl "180+1"]
[EndTime "12:41:19 PDT"]
[Termination "Game drawn by agreement"]

1. d4 {[%clk 0:03:00.9]} 1... Nf6 {[%clk 0:02:59.6]} 2. c4 {[%clk 0:03:00.7]}
2... g6 {[%clk 0:02:56.9]} 3. Nc3 {[%clk 0:02:59.2]} 3... Bg7 {[%clk 0:02:56.7]}
4. g3 {[%clk 0:02:54.3]} 4... O-O {[%clk 0:02:50.8]} 5. Bg2 {[%clk 0:02:54.6]}
5... d6 {[%clk 0:02:51.4]} 6. Nf3 {[%clk 0:02:54.9]} 6... Nc6 {[%clk 0:02:51.9]}
7. O-O {[%clk 0:02:54.8]} 7... a6 {[%clk 0:02:52.4]} 8. Bf4 {[%clk 0:02:31.1]}
8... Rb8 {[%clk 0:02:50.7]} 9. Rc1 {[%clk 0:02:30.2]} 9... h6 {[%clk 0:02:50.8]}
10. d5 {[%clk 0:02:11.1]} 10... e5 {[%clk 0:02:49.1]} 11. Bd2 {[%clk 0:01:59.9]}
11... Nd4 {[%clk 0:02:48.9]} 12. e3 {[%clk 0:01:56.4]} 12... Nf5 {[%clk
0:02:48.6]} 13. e4 {[%clk 0:01:45.7]} 13... Nd4 {[%clk 0:02:42.2]} 14. Be3
{[%clk 0:01:45.4]} 14... Bg4 {[%clk 0:02:22]} 15. Bxd4 {[%clk 0:01:40.9]} 15...
exd4 {[%clk 0:02:22.3]} 16. Qxd4 {[%clk 0:01:41.3]} 16... Nd7 {[%clk 0:02:23.2]}
17. Qd2 {[%clk 0:01:37.6]} 17... Re8 {[%clk 0:02:15.3]} 18. h3 {[%clk 0:01:24]}
18... Bxf3 {[%clk 0:02:09.2]} 19. Bxf3 {[%clk 0:01:24.9]} 19... h5 {[%clk
0:02:01.1]} 20. Bg2 {[%clk 0:01:16]} 20... h4 {[%clk 0:01:45]} 21. g4 {[%clk
0:01:14.9]} 21... Qf6 {[%clk 0:01:44.2]} 22. Kh1 {[%clk 0:01:09]} 22... Qd4
{[%clk 0:01:28.5]} 23. Qxd4 {[%clk 0:01:04.6]} 23... Bxd4 {[%clk 0:01:29.4]} 24.
Rcd1 {[%clk 0:01:05]} 24... Bg7 {[%clk 0:01:05.1]} 25. f4 {[%clk 0:01:04.5]}
25... Nb6 {[%clk 0:01:05.4]} 26. c5 {[%clk 0:00:48.4]} 26... Nc4 {[%clk
0:01:02.9]} 27. cxd6 {[%clk 0:00:47.4]} 27... cxd6 {[%clk 0:00:59.1]} 28. Rf2
{[%clk 0:00:41.8]} 28... Nxb2 {[%clk 0:00:28.7]} 29. Rxb2 {[%clk 0:00:41]} 29...
Bxc3 {[%clk 0:00:29.3]} 30. Rb3 {[%clk 0:00:41.6]} 30... Bf6 {[%clk 0:00:27.9]}
31. g5 {[%clk 0:00:30.3]} 31... Bg7 {[%clk 0:00:25.5]} 32. Rdb1 {[%clk
0:00:26.4]} 32... Rec8 {[%clk 0:00:16.1]} 33. Bf3 {[%clk 0:00:20.5]} 33... b5
{[%clk 0:00:10.1]} 34. a4 {[%clk 0:00:20.1]} 34... Rc5 {[%clk 0:00:10.1]} 35.
axb5 {[%clk 0:00:20]} 35... axb5 {[%clk 0:00:09.5]} 36. Be2 {[%clk 0:00:20]}
36... Re8 {[%clk 0:00:10]} 37. Bd3 {[%clk 0:00:19.7]} 37... Bd4 {[%clk
0:00:08.7]} 38. Rxb5 {[%clk 0:00:19.2]} 38... Rxb5 {[%clk 0:00:08.2]} 39. Rxb5
{[%clk 0:00:18.2]} 39... Rc8 {[%clk 0:00:08.8]} 40. Rb3 {[%clk 0:00:15.6]} 40...
Be3 {[%clk 0:00:06.4]} 41. e5 {[%clk 0:00:13.5]} 41... Bxf4 {[%clk 0:00:06]} 42.
e6 {[%clk 0:00:13.6]} 42... Bxg5 {[%clk 0:00:04.5]} 43. Rb7 {[%clk 0:00:13.2]}
43... Rf8 {[%clk 0:00:04.6]} 44. Kg2 {[%clk 0:00:11.5]} 44... Kg7 {[%clk
0:00:03.8]} 45. Rxf7+ {[%clk 0:00:09.6]} 45... Rxf7 {[%clk 0:00:04.1]} 46. exf7
{[%clk 0:00:10.5]} 46... Kxf7 {[%clk 0:00:05]} 47. Kf3 {[%clk 0:00:10.6]} 47...
Kg7 {[%clk 0:00:03.8]} 48. Kg4 {[%clk 0:00:10.8]} 48... Bf6 {[%clk 0:00:04.1]}
49. Be4 {[%clk 0:00:10.7]} 49... Kh6 {[%clk 0:00:04.4]} 50. Bd3 {[%clk
0:00:10.8]} 50... Kg7 {[%clk 0:00:04.7]} 51. Be4 {[%clk 0:00:11.1]} 51... Kh6
{[%clk 0:00:03.7]} 1/2-1/2

[Event "*** Titled Tuesday Blitz"]
[Site "Chess.com"]
[Date "2020.05.19"]
[Round "4"]
[White "Paralinch"]
[Black "Azatic"]
[Result "1/2-1/2"]
[WhiteElo "2864"]
[BlackElo "2611"]
[TimeControl "180+1"]
[EndTime "12:41:19 PDT"]
[Termination "Game drawn by repetition"]

1. e4 {[%clk 0:03:00.9]} 1... c5 {[%clk 0:02:59.8]} 2. Nf3 {[%clk 0:03:01.2]}
2... e6 {[%clk 0:02:59.8]} 3. d4 {[%clk 0:03:01.5]} 3... cxd4 {[%clk 0:03:00.7]}
4. Nxd4 {[%clk 0:03:02.4]} 4... a6 {[%clk 0:03:01]} 5. Bd3 {[%clk 0:03:02]} 5...
Nf6 {[%clk 0:02:56.5]} 6. Qe2 {[%clk 0:03:01.8]} 6... d6 {[%clk 0:02:56.3]} 7.
O-O {[%clk 0:03:01.6]} 7... Be7 {[%clk 0:02:56.6]} 8. c4 {[%clk 0:03:01.9]} 8...
O-O {[%clk 0:02:56.7]} 9. Nc3 {[%clk 0:03:02.2]} 9... Nc6 {[%clk 0:02:56.6]} 10.
Be3 {[%clk 0:02:58.9]} 10... Bd7 {[%clk 0:02:54.7]} 11. f3 {[%clk 0:02:56.6]}
11... Rc8 {[%clk 0:02:51.2]} 12. Nxc6 {[%clk 0:02:53.9]} 12... Bxc6 {[%clk
0:02:50.8]} 13. Rfd1 {[%clk 0:02:52.7]} 13... Qc7 {[%clk 0:02:23.2]} 14. Rac1
{[%clk 0:02:50.2]} 14... Qb8 {[%clk 0:02:22.8]} 15. b4 {[%clk 0:02:40]} 15... b6
{[%clk 0:01:49]} 16. a3 {[%clk 0:02:30.2]} 16... Ba8 {[%clk 0:01:42]} 17. Kh1
{[%clk 0:02:26.4]} 17... Nd7 {[%clk 0:01:37.4]} 18. Na4 {[%clk 0:02:05.7]} 18...
Bc6 {[%clk 0:01:26.2]} 19. b5 {[%clk 0:02:05.9]} 19... axb5 {[%clk 0:01:27.1]}
20. cxb5 {[%clk 0:02:06.8]} 20... Ba8 {[%clk 0:01:27.2]} 21. Kg1 {[%clk
0:02:03.4]} 21... Rfd8 {[%clk 0:01:21.4]} 22. Bd4 {[%clk 0:01:57.1]} 22... Nc5
{[%clk 0:01:17.8]} 23. Nxc5 {[%clk 0:01:53.9]} 23... dxc5 {[%clk 0:01:10.7]} 24.
Be3 {[%clk 0:01:48.5]} 24... Bd6 {[%clk 0:01:10.5]} 25. g3 {[%clk 0:01:46.8]}
25... h5 {[%clk 0:00:54.3]} 26. f4 {[%clk 0:01:43.1]} 26... c4 {[%clk
0:00:51.4]} 27. Rxc4 {[%clk 0:01:38.6]} 27... Rxc4 {[%clk 0:00:49.1]} 28. Bxc4
{[%clk 0:01:39.5]} 28... Bxe4 {[%clk 0:00:44.7]} 29. a4 {[%clk 0:01:31.1]} 29...
Ba8 {[%clk 0:00:43.3]} 30. h3 {[%clk 0:01:06.3]} 30... Qb7 {[%clk 0:00:38.6]}
31. Kh2 {[%clk 0:01:06.4]} 31... Be7 {[%clk 0:00:38.6]} 32. Rxd8+ {[%clk
0:01:00.1]} 32... Bxd8 {[%clk 0:00:39.5]} 33. Qf1 {[%clk 0:01:00.5]} 33... Bc7
{[%clk 0:00:26.1]} 34. h4 {[%clk 0:00:56.7]} 34... Qe4 {[%clk 0:00:24.6]} 35.
Bd2 {[%clk 0:00:38.8]} 35... Bd8 {[%clk 0:00:17]} 36. Bd3 {[%clk 0:00:33.9]}
36... Qd5 {[%clk 0:00:16.4]} 37. Be3 {[%clk 0:00:31.3]} 37... Bc7 {[%clk
0:00:12.6]} 38. Be2 {[%clk 0:00:19]} 38... g6 {[%clk 0:00:12]} 39. Bd3 {[%clk
0:00:15.7]} 39... Qa2+ {[%clk 0:00:11.8]} 40. Qe2 {[%clk 0:00:14.6]} 40... Qxa4
{[%clk 0:00:11.7]} 41. Qc2 {[%clk 0:00:14.3]} 41... Qa1 {[%clk 0:00:10.9]} 42.
Be4 {[%clk 0:00:13.6]} 42... Bxe4 {[%clk 0:00:09]} 43. Qxe4 {[%clk 0:00:14.5]}
43... Qb2+ {[%clk 0:00:09.1]} 44. Kg1 {[%clk 0:00:11.9]} 44... Qxb5 {[%clk
0:00:07.9]} 45. Qa8+ {[%clk 0:00:12.4]} 45... Kh7 {[%clk 0:00:08.1]} 46. Qb7
{[%clk 0:00:12.6]} 46... Qb1+ {[%clk 0:00:07.3]} 47. Kf2 {[%clk 0:00:13.1]}
47... Qc2+ {[%clk 0:00:08.2]} 48. Kf3 {[%clk 0:00:13.4]} 48... Kg8 {[%clk
0:00:07]} 49. Qa8+ {[%clk 0:00:13.4]} 49... Kh7 {[%clk 0:00:06.9]} 50. Qb7
{[%clk 0:00:13.5]} 50... Qd1+ {[%clk 0:00:06.9]} 51. Kf2 {[%clk 0:00:13.4]}
51... Qc2+ {[%clk 0:00:07.3]} 52. Kf3 {[%clk 0:00:13.6]} 1/2-1/2

[Event "*** Titled Tuesday Blitz"]
[Site "Chess.com"]
[Date "2020.05.19"]
[Round "4"]
[White "HaryKane"]
[Black "Char_dasha"]
[Result "1/2-1/2"]
[WhiteElo "2554"]
[BlackElo "2340"]
[TimeControl "180+1"]
[EndTime "12:41:19 PDT"]
[Termination "Game drawn by repetition"]

1. e4 {[%clk 0:02:52.7]} 1... d5 {[%clk 0:02:54.3]} 2. exd5 {[%clk 0:02:52.3]}
2... Qxd5 {[%clk 0:02:53.8]} 3. Nf3 {[%clk 0:02:52]} 3... Bg4 {[%clk 0:02:48.2]}
4. Be2 {[%clk 0:02:52.9]} 4... Nc6 {[%clk 0:02:47.6]} 5. O-O {[%clk 0:02:49.6]}
5... O-O-O {[%clk 0:02:47.2]} 6. h3 {[%clk 0:02:49.8]} 6... Bh5 {[%clk
0:02:42.6]} 7. Nc3 {[%clk 0:02:47.5]} 7... Qd7 {[%clk 0:02:39.3]} 8. b4 {[%clk
0:02:46.3]} 8... e5 {[%clk 0:02:29.2]} 9. b5 {[%clk 0:02:44.2]} 9... Bxf3 {[%clk
0:02:28.7]} 10. Bxf3 {[%clk 0:02:43]} 10... Nd4 {[%clk 0:02:28.3]} 11. Re1
{[%clk 0:02:42.4]} 11... Bd6 {[%clk 0:02:07.3]} 12. a4 {[%clk 0:02:35]} 12... f5
{[%clk 0:02:03.5]} 13. d3 {[%clk 0:02:32.4]} 13... Nf6 {[%clk 0:02:02.1]} 14. a5
{[%clk 0:02:23.3]} 14... Bb4 {[%clk 0:02:01.4]} 15. Bd2 {[%clk 0:02:19.1]} 15...
e4 {[%clk 0:01:53.3]} 16. Be2 {[%clk 0:01:59.2]} 16... Nxe2+ {[%clk 0:01:50.9]}
17. Nxe2 {[%clk 0:01:49.4]} 17... Bxd2 {[%clk 0:01:30.8]} 18. Qxd2 {[%clk
0:01:50.3]} 18... Qxb5 {[%clk 0:01:24.7]} 19. a6 {[%clk 0:01:39.4]} 19... b6
{[%clk 0:01:24.3]} 20. Nc3 {[%clk 0:01:35.9]} 20... Qc6 {[%clk 0:01:22.4]} 21.
d4 {[%clk 0:01:18.8]} 21... f4 {[%clk 0:01:11.7]} 22. d5 {[%clk 0:01:08.6]}
22... Qc5 {[%clk 0:01:07.2]} 23. Nxe4 {[%clk 0:01:04.1]} 23... Nxe4 {[%clk
0:00:56.8]} 24. Rxe4 {[%clk 0:01:05]} 24... f3 {[%clk 0:00:54.9]} 25. c4 {[%clk
0:00:59.9]} 25... fxg2 {[%clk 0:00:51.9]} 26. Rae1 {[%clk 0:00:54]} 26... Rhf8
{[%clk 0:00:50.2]} 27. Kxg2 {[%clk 0:00:52.1]} 27... g5 {[%clk 0:00:38.2]} 28.
Qe3 {[%clk 0:00:49.2]} 28... Qd6 {[%clk 0:00:33.9]} 29. Qg3 {[%clk 0:00:38.9]}
29... Rf4 {[%clk 0:00:27.1]} 30. Qxg5 {[%clk 0:00:27]} 30... Rff8 {[%clk
0:00:17.5]} 31. Kf1 {[%clk 0:00:20.2]} 31... Rg8 {[%clk 0:00:17.1]} 32. Qf5+
{[%clk 0:00:19.9]} 32... Kb8 {[%clk 0:00:15.9]} 33. Rf4 {[%clk 0:00:19.2]} 33...
Qc5 {[%clk 0:00:15.3]} 34. Qe5 {[%clk 0:00:17.9]} 34... Qa3 {[%clk 0:00:13.3]}
35. Qe3 {[%clk 0:00:15.1]} 35... Qb2 {[%clk 0:00:12.6]} 36. c5 {[%clk
0:00:13.4]} 36... Qb5+ {[%clk 0:00:11.3]} 37. Qe2 {[%clk 0:00:12.8]} 37... Qxc5
{[%clk 0:00:11.3]} 38. Rf5 {[%clk 0:00:12]} 38... Qd6 {[%clk 0:00:11.2]} 39. Qf3
{[%clk 0:00:12.1]} 39... Qh2 {[%clk 0:00:11.1]} 40. d6 {[%clk 0:00:11.6]} 40...
Rg1+ {[%clk 0:00:10.5]} 41. Ke2 {[%clk 0:00:11.6]} 41... Re8+ {[%clk 0:00:10.9]}
42. Kd2 {[%clk 0:00:11.1]} 42... Qxd6+ {[%clk 0:00:11.4]} 43. Rd5 {[%clk
0:00:11.2]} 43... Qb4+ {[%clk 0:00:10.9]} 44. Kc2 {[%clk 0:00:10.2]} 44... Qc4+
{[%clk 0:00:10.8]} 45. Kb2 {[%clk 0:00:09.3]} 45... Qb4+ {[%clk 0:00:09.7]} 46.
Kc2 {[%clk 0:00:09.5]} 46... Qa4+ {[%clk 0:00:09.6]} 47. Kd2 {[%clk 0:00:08.8]}
47... Qa2+ {[%clk 0:00:09.3]} 48. Kc3 {[%clk 0:00:08.1]} 48... Qa3+ {[%clk
0:00:09]} 49. Kc2 {[%clk 0:00:08.1]} 49... Qa2+ {[%clk 0:00:06.1]} 50. Kc3
{[%clk 0:00:08.1]} 50... Qa3+ {[%clk 0:00:04.9]} 51. Kc2 {[%clk 0:00:08.2]}
51... Qa4+ {[%clk 0:00:04.8]} 52. Kb2 {[%clk 0:00:06.7]} 52... Qb4+ {[%clk
0:00:04.2]} 53. Kc2 {[%clk 0:00:06.4]} 1/2-1/2

[Event "*** Titled Tuesday Blitz"]
[Site "Chess.com"]
[Date "2020.05.19"]
[Round "4"]
[White "SCIM"]
[Black "joksijoksi"]
[Result "0-1"]
[WhiteElo "2516"]
[BlackElo "2323"]
[TimeControl "180+1"]
[EndTime "12:41:19 PDT"]
[Termination "joksijoksi won by resignation"]

1. d4 {[%clk 0:03:00.9]} 1... e6 {[%clk 0:02:59.9]} 2. c4 {[%clk 0:03:00.2]}
2... d5 {[%clk 0:03:00.3]} 3. Nf3 {[%clk 0:02:57.8]} 3... c6 {[%clk 0:03:00.6]}
4. e3 {[%clk 0:02:56.7]} 4... f5 {[%clk 0:03:00.6]} 5. Bd3 {[%clk 0:02:56.3]}
5... Nf6 {[%clk 0:03:01]} 6. O-O {[%clk 0:02:56.8]} 6... Bd6 {[%clk 0:03:01.3]}
7. b3 {[%clk 0:02:57.2]} 7... Qe7 {[%clk 0:02:58.3]} 8. Nc3 {[%clk 0:02:57.2]}
8... O-O {[%clk 0:02:57.4]} 9. Bb2 {[%clk 0:02:55.8]} 9... Ne4 {[%clk
0:02:55.6]} 10. Ne2 {[%clk 0:02:55.5]} 10... Nd7 {[%clk 0:02:54.4]} 11. Ne5
{[%clk 0:02:55.8]} 11... Nxe5 {[%clk 0:02:47.8]} 12. dxe5 {[%clk 0:02:54.3]}
12... Bc7 {[%clk 0:02:48.2]} 13. cxd5 {[%clk 0:02:50.5]} 13... cxd5 {[%clk
0:02:41.7]} 14. Rc1 {[%clk 0:02:49.5]} 14... Bb6 {[%clk 0:02:24.8]} 15. Bd4
{[%clk 0:02:49.2]} 15... Bd7 {[%clk 0:02:19.3]} 16. a4 {[%clk 0:02:36.8]} 16...
Rac8 {[%clk 0:02:10.2]} 17. f3 {[%clk 0:02:34]} 17... Ng5 {[%clk 0:02:06.5]} 18.
Qd2 {[%clk 0:02:27.7]} 18... Nf7 {[%clk 0:01:54.5]} 19. a5 {[%clk 0:02:18.8]}
19... Bxd4 {[%clk 0:01:51.9]} 20. Nxd4 {[%clk 0:02:19.3]} 20... Nxe5 {[%clk
0:01:49.7]} 21. Be2 {[%clk 0:02:14.2]} 21... Nf7 {[%clk 0:01:33.6]} 22. Rxc8
{[%clk 0:02:08.8]} 22... Rxc8 {[%clk 0:01:33.2]} 23. Rc1 {[%clk 0:02:09.7]}
23... Rxc1+ {[%clk 0:01:23.7]} 24. Qxc1 {[%clk 0:02:10.6]} 24... Qd6 {[%clk
0:01:23.1]} 25. g3 {[%clk 0:02:00.6]} 25... e5 {[%clk 0:01:16.3]} 26. Nb5 {[%clk
0:01:58.1]} 26... Bxb5 {[%clk 0:00:46]} 27. Bxb5 {[%clk 0:01:57.2]} 27... d4
{[%clk 0:00:32.3]} 28. Qc8+ {[%clk 0:01:50.5]} 28... Nd8 {[%clk 0:00:31.2]} 29.
Qxf5 {[%clk 0:01:48]} 29... dxe3 {[%clk 0:00:27.7]} 30. Bc4+ {[%clk 0:01:39.8]}
30... Kh8 {[%clk 0:00:24.3]} 31. Bd3 {[%clk 0:01:39.7]} 31... g6 {[%clk
0:00:13.9]} 32. Qe4 {[%clk 0:01:38]} 32... Qd4 {[%clk 0:00:14.3]} 33. Kg2 {[%clk
0:01:25.7]} 33... Nc6 {[%clk 0:00:13.4]} 34. a6 {[%clk 0:01:11.8]} 34... bxa6
{[%clk 0:00:11.1]} 35. Qxc6 {[%clk 0:01:10.2]} 35... Qxd3 {[%clk 0:00:11.7]} 36.
Qc5 {[%clk 0:01:04.1]} 36... Qe2+ {[%clk 0:00:08]} 37. Kh3 {[%clk 0:01:02.5]}
37... Qxf3 {[%clk 0:00:08.6]} 38. Qxe5+ {[%clk 0:00:59.9]} 38... Kg8 {[%clk
0:00:09.2]} 39. Qe8+ {[%clk 0:00:58.4]} 39... Kg7 {[%clk 0:00:09.5]} 40. Qe7+
{[%clk 0:00:57.8]} 40... Kh6 {[%clk 0:00:09.2]} 41. Qh4+ {[%clk 0:00:44.5]}
41... Qh5 {[%clk 0:00:08.8]} 42. Qxh5+ {[%clk 0:00:45]} 42... Kxh5 {[%clk
0:00:06.3]} 43. Kg2 {[%clk 0:00:45.9]} 43... Kg5 {[%clk 0:00:03.3]} 44. Kf3
{[%clk 0:00:44.9]} 44... Kf5 {[%clk 0:00:03.7]} 45. h3 {[%clk 0:00:41]} 45... a5
{[%clk 0:00:03.4]} 46. Kxe3 {[%clk 0:00:40.9]} 46... Ke5 {[%clk 0:00:04]} 47.
Kd3 {[%clk 0:00:39.5]} 47... Kd5 {[%clk 0:00:03.1]} 48. g4 {[%clk 0:00:35.6]}
48... g5 {[%clk 0:00:02.5]} 49. Ke3 {[%clk 0:00:34]} 49... Kc5 {[%clk
0:00:02.6]} 50. Kd3 {[%clk 0:00:29.4]} 50... Kb4 {[%clk 0:00:03.1]} 51. Kc2
{[%clk 0:00:29.7]} 51... a6 {[%clk 0:00:02.6]} 52. Kb2 {[%clk 0:00:29]} 52... a4
{[%clk 0:00:03.5]} 53. bxa4 {[%clk 0:00:29.7]} 53... Kxa4 {[%clk 0:00:04.4]} 54.
Kc3 {[%clk 0:00:30.6]} 54... Kb5 {[%clk 0:00:04.5]} 55. Kb3 {[%clk 0:00:29.6]}
55... Kc5 {[%clk 0:00:05]} 56. Kc3 {[%clk 0:00:29.7]} 56... Kd5 {[%clk
0:00:05.3]} 57. Kd3 {[%clk 0:00:30.1]} 57... a5 {[%clk 0:00:05.5]} 58. h4 {[%clk
0:00:25.9]} 58... gxh4 {[%clk 0:00:05.4]} 0-1

[Event "*** Titled Tuesday Blitz"]
[Site "Chess.com"]
[Date "2020.05.19"]
[Round "4"]
[White "yobdc"]
[Black "GMJustin"]
[Result "1-0"]
[WhiteElo "1983"]
[BlackElo "2344"]
[TimeControl "180+1"]
[EndTime "12:41:19 PDT"]
[Termination "yobdc won on time"]

1. e4 {[%clk 0:03:00.9]} 1... c5 {[%clk 0:02:46.3]} 2. Nf3 {[%clk 0:03:00.8]}
2... Nc6 {[%clk 0:02:41.5]} 3. Bb5 {[%clk 0:03:00.4]} 3... g6 {[%clk 0:02:35]}
4. O-O {[%clk 0:03:00.2]} 4... Bg7 {[%clk 0:02:34.6]} 5. Re1 {[%clk 0:02:59.8]}
5... Nf6 {[%clk 0:02:28.4]} 6. c3 {[%clk 0:02:55.7]} 6... O-O {[%clk 0:02:23]}
7. d3 {[%clk 0:02:53.6]} 7... d5 {[%clk 0:02:15.8]} 8. Nbd2 {[%clk 0:02:53]}
8... Bd7 {[%clk 0:01:56.8]} 9. exd5 {[%clk 0:02:46.4]} 9... Nxd5 {[%clk
0:01:56]} 10. Ne4 {[%clk 0:02:45.7]} 10... b6 {[%clk 0:01:47.1]} 11. a4 {[%clk
0:02:38.1]} 11... Nc7 {[%clk 0:01:36.7]} 12. Bc4 {[%clk 0:02:36.4]} 12... Bg4
{[%clk 0:01:30.9]} 13. h3 {[%clk 0:02:00.1]} 13... Bxf3 {[%clk 0:01:28.4]} 14.
Qxf3 {[%clk 0:02:01]} 14... Ne5 {[%clk 0:01:28.2]} 15. Qe2 {[%clk 0:02:01.2]}
15... Nxc4 {[%clk 0:01:23.6]} 16. dxc4 {[%clk 0:02:02.1]} 16... Ne6 {[%clk
0:01:17.1]} 17. Be3 {[%clk 0:01:59.9]} 17... Qc7 {[%clk 0:01:14.5]} 18. Red1
{[%clk 0:01:55.3]} 18... f5 {[%clk 0:00:57.7]} 19. Ng5 {[%clk 0:01:47.7]} 19...
Nxg5 {[%clk 0:00:57.5]} 20. Bxg5 {[%clk 0:01:47.6]} 20... Bf6 {[%clk 0:00:43.7]}
21. Bh6 {[%clk 0:01:46.4]} 21... Rfd8 {[%clk 0:00:33.1]} 22. Qe6+ {[%clk
0:01:43.7]} 22... Kh8 {[%clk 0:00:33.2]} 23. Rd5 {[%clk 0:01:41.2]} 23... Rxd5
{[%clk 0:00:27.7]} 24. cxd5 {[%clk 0:01:41.1]} 24... Rd8 {[%clk 0:00:26.3]} 25.
Re1 {[%clk 0:01:31.2]} 25... Qd7 {[%clk 0:00:20.6]} 26. c4 {[%clk 0:01:26.4]}
26... Qxe6 {[%clk 0:00:19.7]} 27. Rxe6 {[%clk 0:01:25.9]} 27... Kg8 {[%clk
0:00:19.6]} 28. b3 {[%clk 0:01:21.8]} 28... Kf7 {[%clk 0:00:19.3]} 29. Rc6
{[%clk 0:01:07.3]} 29... Be5 {[%clk 0:00:16.2]} 30. Bg5 {[%clk 0:01:01.5]} 30...
Rd7 {[%clk 0:00:11.7]} 31. Rc8 {[%clk 0:01:00.9]} 31... e6 {[%clk 0:00:11.3]}
32. dxe6+ {[%clk 0:00:52.1]} 32... Kxe6 {[%clk 0:00:11.6]} 33. Re8+ {[%clk
0:00:51.6]} 33... Kd6 {[%clk 0:00:11.7]} 34. Kf1 {[%clk 0:00:35.6]} 34... Bd4
{[%clk 0:00:11.8]} 35. Ke2 {[%clk 0:00:34.6]} 35... Kc6 {[%clk 0:00:11.6]} 36.
Bf4 {[%clk 0:00:30.9]} 36... a6 {[%clk 0:00:11.2]} 37. Rc8+ {[%clk 0:00:28.8]}
37... Kb7 {[%clk 0:00:11.1]} 38. Rb8+ {[%clk 0:00:29.1]} 38... Kc6 {[%clk
0:00:11.2]} 39. Ra8 {[%clk 0:00:28.6]} 39... Kb7 {[%clk 0:00:10.8]} 40. Re8
{[%clk 0:00:27.4]} 40... Kc6 {[%clk 0:00:09.7]} 41. f3 {[%clk 0:00:27.6]} 41...
Kb7 {[%clk 0:00:08.7]} 42. g4 {[%clk 0:00:27.2]} 42... fxg4 {[%clk 0:00:07.7]}
43. hxg4 {[%clk 0:00:22.3]} 43... Bf6 {[%clk 0:00:07.6]} 44. Rf8 {[%clk
0:00:19.4]} 44... Bd4 {[%clk 0:00:07]} 45. g5 {[%clk 0:00:18.6]} 45... Re7+
{[%clk 0:00:06.8]} 46. Kd3 {[%clk 0:00:18.5]} 46... Kc6 {[%clk 0:00:06.7]} 47.
Rc8+ {[%clk 0:00:17]} 47... Kb7 {[%clk 0:00:06.4]} 48. Rb8+ {[%clk 0:00:17.3]}
48... Kc6 {[%clk 0:00:06.7]} 49. Rf8 {[%clk 0:00:16.4]} 49... Kd7 {[%clk
0:00:05.7]} 50. Bd2 {[%clk 0:00:16.1]} 50... Kc6 {[%clk 0:00:04.7]} 51. f4
{[%clk 0:00:16.2]} 51... Rd7 {[%clk 0:00:04.2]} 52. Ke2 {[%clk 0:00:15.8]} 52...
Re7+ {[%clk 0:00:03.7]} 53. Kf3 {[%clk 0:00:15.6]} 53... Kd7 {[%clk 0:00:02.9]}
54. Rb8 {[%clk 0:00:14.6]} 54... Kc7 {[%clk 0:00:02.6]} 55. Rf8 {[%clk
0:00:14.1]} 55... Kd7 {[%clk 0:00:01.7]} 56. Ra8 {[%clk 0:00:12.2]} 1-0